fUST/lending_fUST_20240206
["ID","MTS","AMOUNT","RATE_DAILY","PERIOD"]
[313345482,1707190244010,-172.53939877,0.00027397,2]
[313345483,1707190244021,-500.0,0.00027397,2]
[313345484,1707190244031,-154.14750914,0.00027397,2]
[313345485,1707190244042,-500.0,0.00027397,2]
[313345486,1707190244053,-500.0,0.00027397,2]
[313345487,1707190244063,-500.0,0.00027397,2]
[313345488,1707190244074,-1000.0,0.00027397,2]
[313345489,1707190244085,-500.0,0.00027397,2]
[313345490,1707190244096,-500.0,0.00027397,2]
[313345491,1707190244106,-500.0,0.00027397,2]
[313345492,1707190244117,-500.0,0.00027397,2]
[313345493,1707190244127,-250.0,0.00027397,7]
[313345494,1707190244138,-625.5,0.00027397,2]
[313345495,1707190244149,-625.5,0.00027397,2]
[313345496,1707190244161,-625.5,0.00027397,2]
[313345497,1707190244172,-625.5,0.00027397,2]
[313345498,1707190244182,-625.5,0.00027397,2]
[313345499,1707190244192,-625.5,0.00027397,2]
[313345500,1707190244202,-625.5,0.00027397,2]
[313345501,1707190244213,-625.5,0.00027397,2]
[313345502,1707190244224,-625.5,0.00027397,2]
[313345503,1707190244236,-625.5,0.00027397,2]
[313345504,1707190244246,-625.5,0.00027397,2]
[313345505,1707190244256,-625.5,0.00027397,2]
[313345506,1707190244266,-625.5,0.00027397,2]
[313345507,1707190244278,-625.5,0.00027397,2]
[313345508,1707190244289,-625.5,0.00027397,2]
[313345509,1707190244299,-625.5,0.00027397,2]
[313345510,1707190244309,-625.5,0.00027397,2]
[313345511,1707190244323,-479.7700715,0.00027397,2]
[313345512,1707190244333,-500.0,0.00027397,2]
[313345513,1707190244454,-511.05916981,0.00027397,2]
[313345514,1707190244469,-500.0,0.00027397,2]
[313345515,1707190244479,-500.43781415,0.00027397,2]
[313345516,1707190244488,-500.0,0.00027397,2]
[313345517,1707190244497,-511.24718274,0.00027397,2]
[313345518,1707190244506,-387.40722814,0.00027397,2]
[313345519,1707190244515,-510.98297701,0.00027397,2]
[313345520,1707190244524,-509.31752061,0.00027397,2]
[313345521,1707190244533,-500.0,0.00027397,2]
[313345522,1707190244542,-500.0,0.00027397,2]
[313345523,1707190244551,-507.86117609,0.00027397,2]
[313345524,1707190244560,-584.92808444,0.00027397,2]
[313345525,1707190244569,-507.93919861,0.00027397,2]
[313345526,1707190244579,-510.03166233,0.00027397,2]
[313345527,1707190244588,-519.52382131,0.00027397,2]
[313345528,1707190244598,-266.81353244,0.00027397,2]
[313345529,1707190244608,-596.7293582,0.00027397,2]
[313345530,1707190244618,-500.0,0.00027397,2]
[313345531,1707190244628,-356.07658492,0.00027397,2]
[313345532,1707190244642,-304.94593763,0.00027397,2]
[313345533,1707190244651,-500.0,0.00027397,2]
[313345534,1707190244661,-533.12355791,0.00027397,2]
[313345535,1707190244673,-513.23191676,0.00027397,2]
[313345536,1707190244682,-500.0,0.00027397,2]
[313345537,1707190244692,-500.0,0.00027397,2]
[313345538,1707190244702,-500.0,0.00027397,2]
[313345539,1707190244713,-500.0,0.00027397,2]
[313345540,1707190244725,-3293.58,0.00027397,2]
[313345541,1707190244735,-512.6385374,0.00027397,2]
[313345542,1707190244745,-500.0,0.00027397,2]
[313345543,1707190244755,-244.58374273,0.00027397,2]
[313345544,1707190244764,-500.0,0.00027397,15]
[313345545,1707190244774,-500.0,0.00027397,2]
[313345546,1707190244784,-405.68034188,0.00027397,2]
[313345547,1707190244793,-500.0,0.00027397,2]
[313345548,1707190244803,-1977.57,0.00027397,2]
[313345549,1707190244812,-500.0,0.00027397,2]
[313345550,1707190244822,-500.0,0.00027397,2]
[313345551,1707190244832,-456.92104003,0.00027397,2]
[313345552,1707190244842,-512.043607,0.00027397,2]
[313345553,1707190244852,-500.0,0.00027397,2]
[313345554,1707190244861,-709.1,0.00027397,2]
[313345555,1707190244871,-507.83060116,0.00027397,7]
[313345556,1707190244880,-514.02688532,0.00027397,2]
[313345557,1707190244890,-509.65230751,0.00027397,2]
[313345558,1707190244899,-500.0,0.00027397,2]
[313345559,1707190244909,-155.0,0.00027397,2]
[313345560,1707190244919,-2352.92,0.00027397,2]
[313345561,1707190244929,-1188.37,0.00027397,2]
[313345562,1707190244938,-528.07497472,0.00027397,2]
[313345563,1707190244948,-339.44388829,0.00027397,2]
[313345564,1707190244958,-1194.04,0.00027397,2]
[313345565,1707190244967,-468.80814994,0.00027397,2]
[313345566,1707190244977,-2658.96,0.00027397,2]
[313345567,1707190244986,-500.0,0.00027397,2]
[313345568,1707190244997,-256.73072686,0.00027397,2]
[313345569,1707190245007,-4192.13,0.00027397,2]
[313345570,1707190245017,-3036.5,0.00027397,2]
[313345571,1707190245027,-369.15726056,0.00027397,2]
[313345572,1707190245036,-522.41934248,0.00027397,2]
[313345573,1707190245046,-500.0,0.00027397,2]
[313345574,1707190245056,-3139.85,0.00027397,2]
[313345575,1707190245065,-533.56886177,0.00027397,2]
[313345576,1707190245075,-500.0,0.00027397,2]
[313345577,1707190245085,-500.0,0.00027397,2]
[313345578,1707190245094,-150.1,0.00027397,2]
[313345579,1707190245104,-164.82456979,0.00027397,10]
[313345580,1707190245114,-153.0,0.00027397,2]
[313345581,1707190245123,-153.0,0.00027397,2]
[313345582,1707190245133,-153.0,0.00027397,2]
[313345583,1707190245143,-153.0,0.00027397,2]
[313345584,1707190245153,-158.93674939,0.00027471,2]
[313345585,1707190245163,-500.0,0.00027534,7]
[313345586,1707190245172,-8673.81002401,0.0002755,4]
[313345587,1707190245182,-625.5,0.0002767,2]
[313345588,1707190245192,-500.0,0.00027671,2]
[313345589,1707190245203,-505.66252776,0.00027671,2]
[313345590,1707190245212,-500.0,0.00027671,2]
[313345591,1707190245222,-500.0,0.00027671,2]
[313345592,1707190245231,-594.31786875,0.00027671,2]
[313345593,1707190245240,-1000.0,0.00027671,2]
[313345594,1707190245250,-500.0,0.00027671,2]
[313345595,1707190245259,-225.0,0.00027671,2]
[313345596,1707190245268,-521.41685838,0.00027671,2]
[313345597,1707190245277,-500.0,0.00027671,2]
[313345598,1707190245287,-750.0,0.00027671,7]
[313345599,1707190245296,-514.05744456,0.00027671,2]
[313345600,1707190245305,-257.13291996,0.00027671,2]
[313345601,1707190245314,-500.0,0.00027671,2]
[313345602,1707190245324,-500.0,0.00027671,2]
[313345603,1707190245334,-514.39965931,0.00027671,2]
[313345604,1707190245344,-500.0,0.00027671,2]
[313345605,1707190245353,-280.26803173,0.00027671,2]
[313345606,1707190245362,-611.85399004,0.00027671,2]
[313345607,1707190245372,-500.0,0.00027671,2]
[313345608,1707190245383,-307.06583465,0.00027671,2]
[313345609,1707190245392,-568.56581189,0.00027671,2]
[313345610,1707190245402,-3293.58,0.00027671,2]
[313345611,1707190245411,-500.0,0.00027671,2]
[313345612,1707190245421,-500.0,0.00027671,15]
[313345613,1707190245431,-500.0,0.00027671,2]
[313345614,1707190245440,-450.4309741,0.00027671,2]
[313345615,1707190245449,-1977.57,0.00027671,2]
[313345616,1707190245459,-500.0,0.00027671,2]
[313345617,1707190245469,-500.0,0.00027671,2]
[313345618,1707190245479,-500.0,0.00027671,2]
[313345619,1707190245488,-709.1,0.00027671,2]
[313345620,1707190245498,-500.0,0.00027671,2]
[313345621,1707190245508,-2352.92,0.00027671,2]
[313345622,1707190245517,-1188.37,0.00027671,2]
[313345623,1707190245526,-1194.04,0.00027671,2]
[313345624,1707190245536,-2658.96,0.00027671,2]
[313345625,1707190245545,-511.81667457,0.00027671,2]
[313345626,1707190245555,-4192.13,0.00027671,2]
[313345628,1707190245565,-3036.5,0.00027671,2]
[313345630,1707190245574,-500.0,0.00027671,2]
[313345631,1707190245583,-3139.85,0.00027671,2]
[313345632,1707190245593,-500.0,0.00027671,2]
[313345633,1707190245603,-1000.0,0.00027686,7]
[313345634,1707190245613,-627.27273029,0.00027697,3]
[313345635,1707190245623,-418.26801809,0.00027697,2]
[313345637,1707190245636,-235.05,0.000278,3]
[313345639,1707190245645,-3000.0,0.000278,4]
[313345641,1707190245655,-200.0,0.000278,4]
[313345643,1707190245664,-1000.0,0.00027808,7]
[313345645,1707190245673,-254.734944,0.00027824,2]
[313345647,1707190245682,-4521.87747527,0.00027855,2]
[313345648,1707190245691,-159.07832901,0.00027867,2]
[313345649,1707190245700,-160.0,0.00027923,3]
[313345651,1707190245711,-625.5,0.00027944,2]
[313345652,1707190245721,-500.0,0.00027945,2]
[313345654,1707190245731,-168.85904369,0.00027945,2]
[313345656,1707190245742,-1008.52430616,0.00027945,2]
[313345657,1707190245752,-500.0,0.00027945,2]
[313345659,1707190245761,-500.0,0.00027945,2]
[313345661,1707190245771,-1250.0,0.00027945,7]
[313345662,1707190245781,-500.0,0.00027945,2]
[313345664,1707190245790,-510.9691374,0.00027945,2]
[313345666,1707190245799,-241.70680257,0.00027945,2]
[313345667,1707190245809,-500.0,0.00027945,2]
[313345669,1707190245819,-3293.58,0.00027945,2]
[313345671,1707190245829,-500.0,0.00027945,2]
[313345673,1707190245839,-506.18537805,0.00027945,15]
[313345675,1707190245848,-500.0,0.00027945,2]
[313345676,1707190245857,-1977.57,0.00027945,2]
[313345677,1707190245867,-279.80049232,0.00027945,2]
[313345678,1707190245877,-500.0,0.00027945,2]
[313345679,1707190245887,-500.0,0.00027945,2]
[313345680,1707190245896,-709.1,0.00027945,2]
[313345682,1707190245905,-500.0,0.00027945,2]
[313345684,1707190245914,-2352.92,0.00027945,2]
[313345686,1707190245923,-1188.37,0.00027945,2]
[313345688,1707190245932,-1194.04,0.00027945,2]
[313345690,1707190245941,-2658.96,0.00027945,2]
[313345692,1707190245951,-4192.13,0.00027945,2]
[313345693,1707190245961,-3036.5,0.00027945,2]
[313345696,1707190245971,-500.0,0.00027945,2]
[313345697,1707190245980,-3139.85,0.00027945,2]
[313345700,1707190245990,-625.5,0.00027998,2]
[313345702,1707190246001,-625.5,0.00027998,2]
[313345704,1707190246011,-625.5,0.00027998,2]
[313345705,1707190246020,-625.5,0.00027998,2]
[313345707,1707190246030,-625.50157558,0.00027998,2]
[313345709,1707190246039,-154.98112192,0.00027998,2]
[313345711,1707190246050,-28656.20660674,0.00027999,2]
[313345713,1707190246059,-881.89667248,0.00028,3]
[313345715,1707190246068,-201.39644924,0.00028,2]
[313345717,1707190246079,-155.24625614,0.00028,2]
[313345719,1707190246088,-3377.88778975,0.00028,2]
[313345722,1707190246103,-9054.33224406,0.00028,2]
[313345733,1707190246243,-260.97438823,0.00025057,2]
[313345734,1707190246252,-306.5684,0.00027671,2]
[313345735,1707190246262,-500.0,0.00027945,2]
[313345736,1707190246271,-676.37401185,0.00028,2]
[313345737,1707190246298,-10778.03010484,0.00028,2]
[313346014,1707191443408,-260.97438823,0.00022546,2]
[313346017,1707191443418,-1429.0772879,0.00022548,2]
[313346022,1707191443465,-247.08065058,0.00022548,2]
[313346024,1707191443474,-167.0963932,0.00022552,2]
[313346026,1707191443484,-613.3503806,0.00022898,2]
[313346029,1707191443493,-9287.2823036,0.00022942,2]
[313346031,1707191443502,-183.28318696,0.00023,2]
[313346033,1707191443511,-815.43655939,0.00023578,2]
[313346035,1707191443521,-419.27947921,0.00023578,2]
[313346036,1707191443530,-1552.49113202,0.00023602,2]
[313346039,1707191443540,-151.17727285,0.00024499,2]
[313346041,1707191443549,-2502.69869633,0.000245,2]
[313346043,1707191443559,-1765.56,0.0002459,3]
[313346045,1707191443568,-500.0,0.00024599,2]
[313346047,1707191443577,-500.0,0.00024599,2]
[313346048,1707191443586,-288.5777878,0.00024599,2]
[313346250,1707192632446,-260.97438823,0.00022452,2]
[313346251,1707192632456,-1553.67709145,0.00022452,2]
[313346252,1707192632469,-756.77789096,0.00022452,2]
[313346297,1707192641737,-156.09101686,0.00022452,2]
[313346299,1707192641747,-173.66081584,0.00022453,2]
[313346303,1707192641795,-307.73296472,0.00022453,2]
[313346304,1707192641805,-277.20352253,0.0002249,2]
[313346305,1707192641814,-165.938904,0.00022965,2]
[313346306,1707192641822,-183.28318696,0.00023042,2]
[313346307,1707192641831,-1351.92012793,0.00023043,2]
[313346308,1707192641843,-3585.15197365,0.00023043,2]
[313346309,1707192641854,-1845.55354462,0.00023043,2]
[313346310,1707192641863,-151.17727283,0.00024489,2]
[313346311,1707192641873,-162.33712155,0.00024499,2]
[313346312,1707192641881,-7999.94792708,0.000245,2]
[313346398,1707192645356,-2958.24145242,0.000245,2]
[313346399,1707192645365,-1471.3,0.00024589,3]
[313346400,1707192645375,-1226.08,0.00024589,3]
[313346401,1707192645384,-625.00330695,0.00024598,2]
[313346402,1707192645394,-500.0,0.00024598,2]
[313346403,1707192645404,-636.3862122,0.00024598,2]
[313346404,1707192645414,-19194.36539192,0.00024599,2]
[313346405,1707192645424,-3252.59212443,0.00024599,2]
[313346407,1707192645433,-285046.09398257,0.00024599,2]
[313346409,1707192645442,-162.33712155,0.00024632,2]
[313346411,1707192645452,-162.33712155,0.00024765,2]
[313346412,1707192645461,-162.33712155,0.00024898,2]
[313346413,1707192645471,-685.47552696,0.00024998,2]
[313346414,1707192645481,-155.44417121,0.00025,2]
[313346415,1707192645490,-535.03190243,0.00025,2]
[313346416,1707192645499,-4737.09564271,0.00025,2]
[313346417,1707192645509,-7404.37733039,0.00025,2]
[313346418,1707192645519,-18637.88732166,0.00025,2]
[313346419,1707192645529,-276.29184629,0.000251,2]
[313346420,1707192645538,-755.75365581,0.00025103,2]
[313346421,1707192645548,-200.0,0.00025346,7]
[313346422,1707192645557,-151.0,0.00026036,2]
[313346423,1707192645567,-8673.81002401,0.000266,4]
[313346424,1707192645576,-685.47552693,0.00026797,2]
[313346425,1707192645586,-1382.18712493,0.00027,2]
[313346426,1707192645595,-620.29496123,0.00027062,2]
[313346427,1707192645604,-318.75712853,0.00027397,2]
[313346428,1707192645614,-500.0,0.00027397,2]
[313346429,1707192645624,-500.0,0.00027397,2]
[313346430,1707192645634,-155.0,0.00027397,2]
[313346431,1707192645644,-516.3223332,0.00027397,2]
[313346432,1707192645654,-500.0,0.00027397,2]
[313346433,1707192645663,-262.92215611,0.00027397,2]
[313346434,1707192645673,-250.0,0.00027397,7]
[313346435,1707192645683,-500.0,0.00027397,2]
[313346436,1707192645693,-500.0,0.00027397,2]
[313346437,1707192645702,-2881.88,0.00027397,2]
[313346438,1707192645711,-500.0,0.00027397,2]
[313346439,1707192645721,-618.50232055,0.00027397,2]
[313346440,1707192645730,-500.0,0.00027397,2]
[313346441,1707192645739,-620.46,0.00027397,2]
[313346442,1707192645749,-1730.38,0.00027397,2]
[313346443,1707192645757,-500.0,0.00027397,2]
[313346444,1707192645767,-500.0,0.00027397,2]
[313346445,1707192645777,-512.71954006,0.00027397,2]
[313346446,1707192645786,-504.15611965,0.00027397,2]
[313346447,1707192645795,-2092.01,0.00027397,2]
[313346448,1707192645805,-1099.71,0.00027397,2]
[313346449,1707192645815,-1044.79,0.00027397,2]
[313346450,1707192645824,-506.46001336,0.00027397,2]
[313346451,1707192645834,-3675.12,0.00027397,2]
[313346452,1707192645844,-2326.59,0.00027397,2]
[313346453,1707192645853,-2747.37,0.00027397,2]
[313346454,1707192645862,-500.0,0.00027397,2]
[313346455,1707192645871,-2656.94,0.00027397,2]
[313346456,1707192645880,-502.97325667,0.00027397,2]
[313346457,1707192645889,-296.30103054,0.00027397,2]
[313346458,1707192645898,-150.1,0.00027397,2]
[313346459,1707192645907,-151.0,0.00027473,2]
[313346460,1707192645917,-277.20352253,0.0002749,2]
[313346461,1707192645926,-151.17727283,0.00027513,3]
[313346462,1707192645935,-253.95865335,0.00027534,7]
[313346463,1707192645944,-178.10806975,0.00027599,2]
[313346464,1707192645953,-158.93674939,0.00027629,2]
[313346465,1707192645962,-500.0,0.0002767,2]
[313346466,1707192645972,-500.0,0.0002767,2]
[313346467,1707192645981,-500.0,0.0002767,2]
[313346468,1707192645991,-370.74727833,0.0002767,2]
[313346469,1707192645999,-407.79517293,0.0002767,2]
[313346470,1707192646009,-305.58385974,0.0002767,2]
[313346471,1707192646018,-547.67920536,0.0002767,2]
[313346472,1707192646027,-500.0,0.00027671,2]
[313346473,1707192646036,-500.0,0.00027671,2]
[313346474,1707192646045,-500.0,0.00027671,2]
[313346475,1707192646054,-500.0,0.00027671,2]
[313346476,1707192646064,-2881.88,0.00027671,2]
[313346477,1707192646073,-500.0,0.00027671,2]
[313346478,1707192646081,-500.0,0.00027671,2]
[313346479,1707192646091,-620.46,0.00027671,2]
[313346480,1707192646100,-1730.38,0.00027671,2]
[313346481,1707192646110,-500.0,0.00027671,2]
[313346482,1707192646119,-500.0,0.00027671,2]
[313346483,1707192646128,-2092.01,0.00027671,2]
[313346484,1707192646137,-1099.71,0.00027671,2]
[313346485,1707192646146,-1044.79,0.00027671,2]
[313346486,1707192646155,-3675.12,0.00027671,2]
[313346488,1707192646164,-2326.59,0.00027671,2]
[313346489,1707192646173,-2747.37,0.00027671,2]
[313346490,1707192646182,-500.0,0.00027671,2]
[313346491,1707192646191,-2656.94,0.00027671,2]
[313346492,1707192646200,-202.7559937,0.00027671,2]
[313346493,1707192646209,-199.8729763,0.00027671,2]
[313346494,1707192646219,-199.8729763,0.00027671,2]
[313346495,1707192646228,-199.8729763,0.00027671,2]
[313346496,1707192646238,-1000.0,0.000277,7]
[313346497,1707192646247,-274.40781024,0.000278,4]
[313346498,1707192646256,-200.9,0.000278,4]
[313346499,1707192646265,-1120.833757,0.00027824,2]
[313346500,1707192646274,-280.0,0.00027881,15]
[313346501,1707192646284,-500.0,0.00027945,2]
[313346502,1707192646293,-500.0,0.00027945,2]
[313346503,1707192646302,-500.0,0.00027945,2]
[313346504,1707192646311,-500.0,0.00027945,2]
[313346506,1707192646320,-2881.88,0.00027945,2]
[313346507,1707192646331,-500.0,0.00027945,2]
[313346508,1707192646341,-500.0,0.00027945,2]
[313346509,1707192646350,-620.46,0.00027945,2]
[313346510,1707192646359,-1730.38,0.00027945,2]
[313346511,1707192646368,-500.0,0.00027945,2]
[313346512,1707192646378,-500.0,0.00027945,2]
[313346513,1707192646387,-2092.01,0.00027945,2]
[313346514,1707192646397,-1099.71,0.00027945,2]
[313346515,1707192646409,-1044.79,0.00027945,2]
[313346516,1707192646418,-3675.12,0.00027945,2]
[313346517,1707192646428,-2326.59,0.00027945,2]
[313346518,1707192646437,-2747.37,0.00027945,2]
[313346519,1707192646446,-500.0,0.00027945,2]
[313346520,1707192646455,-2656.94,0.00027945,2]
[313346521,1707192646465,-158.93674939,0.00027978,2]
[313346522,1707192646475,-305.02774154,0.00027988,2]
[313346523,1707192646484,-157.08918577,0.00027999,2]
[313346524,1707192646493,-313.63636515,0.00028,3]
[313346525,1707192646503,-24813.24599015,0.00028,2]
[313346526,1707192646516,-49821.08616482,0.00028,2]
[313346527,1707192646528,-856.35960284,0.00028,2]
[313346528,1707192646585,-279.79563333,0.00028,2]
[313346529,1707192646595,-17951.74129803,0.00028,20]
[313346530,1707192646638,-1755.72476602,0.00028,20]
[313346789,1707195031867,-260.97438823,0.00022605,2]
[313346791,1707195031877,-166.666666,0.00022679,2]
[313346792,1707195031888,-220.259912,0.00022749,2]
[313346794,1707195031897,-929.53442477,0.00022866,2]
[313346816,1707195037953,-3720.03513486,0.00022866,2]
[313346823,1707195038009,-20250.43044037,0.00022866,2]
[313346825,1707195038019,-183.28318696,0.00024104,2]
[313346827,1707195038028,-3506.50588469,0.00024105,2]
[313346829,1707195038038,-154.65093886,0.00024398,2]
[313346831,1707195038047,-1480.33,0.00024489,3]
[313346833,1707195038057,-500.0,0.00024498,2]
[313346835,1707195038066,-500.0,0.00024498,2]
[313346837,1707195038079,-500.0,0.00024498,2]
[313346839,1707195038088,-500.0,0.00024498,2]
[313346841,1707195038097,-500.0,0.00024498,2]
[313346843,1707195038108,-500.0,0.00024498,2]
[313346846,1707195038117,-500.0,0.00024498,2]
[313346848,1707195038126,-500.0,0.00024498,2]
[313346850,1707195038136,-588.2,0.00024498,2]
[313346852,1707195038145,-500.0,0.00024498,2]
[313346853,1707195038155,-500.0,0.00024498,2]
[313346855,1707195038164,-500.0,0.00024498,2]
[313346857,1707195038173,-500.0,0.00024498,2]
[313346859,1707195038182,-500.0,0.00024498,2]
[313346861,1707195038192,-500.0,0.00024498,2]
[313346863,1707195038201,-500.0,0.00024498,2]
[313346864,1707195038210,-500.0,0.00024498,2]
[313346865,1707195038219,-500.0,0.00024498,2]
[313346866,1707195038228,-500.0,0.00024498,2]
[313346867,1707195038237,-500.0,0.00024498,2]
[313346868,1707195038247,-500.0,0.00024498,2]
[313346869,1707195038256,-500.0,0.00024498,2]
[313346870,1707195038265,-500.0,0.00024498,2]
[313346871,1707195038275,-500.0,0.00024498,2]
[313346872,1707195038284,-500.0,0.00024498,2]
[313346873,1707195038293,-500.0,0.00024498,2]
[313346874,1707195038303,-500.0,0.00024498,2]
[313346875,1707195038312,-500.0,0.00024498,2]
[313346876,1707195038322,-500.0,0.00024498,2]
[313346877,1707195038332,-500.0,0.00024498,2]
[313346878,1707195038342,-500.0,0.00024498,2]
[313346879,1707195038352,-500.0,0.00024498,2]
[313346880,1707195038362,-500.0,0.00024498,2]
[313346881,1707195038371,-500.0,0.00024498,2]
[313346882,1707195038380,-500.0,0.00024498,2]
[313346883,1707195038390,-500.0,0.00024498,2]
[313346884,1707195038399,-54211.79124184,0.00024499,2]
[313346906,1707195041202,-12217.58426414,0.00024499,2]
[313346942,1707195042915,-1233.61,0.00024489,3]
[313346943,1707195042924,-2065.41099088,0.00024499,2]
[313346944,1707195042937,-647.19209226,0.00024499,2]
[313346955,1707195233029,1991.03554928,0.0001631,2]
[313347123,1707196238128,-260.97438823,0.00021876,2]
[313347124,1707196238138,-162.67281324,0.00021877,2]
[313347125,1707196238148,-166.666666,0.00021977,2]
[313347126,1707196238157,-3390.09180906,0.00022045,2]
[313347127,1707196238167,-563.010236,0.00022046,2]
[313347128,1707196238176,-980.14371591,0.00022047,2]
[313347129,1707196238186,-924.65987481,0.00022363,2]
[313347130,1707196238200,-23975.34012519,0.00022363,2]
[313347131,1707196238211,-353.08500793,0.00022399,2]
[313347132,1707196238220,-247.487044,0.0002249,2]
[313347133,1707196238230,-172.7047008,0.00022517,2]
[313347134,1707196238239,-183.28318696,0.00023577,2]
[313347135,1707196238249,-16463.75978174,0.00023578,2]
[313347136,1707196238259,-254.01031308,0.00023894,2]
[313347137,1707196238268,-1713.73665559,0.00024007,2]
[313347138,1707196238277,-203.661,0.00024188,2]
[313347139,1707196238287,-162.67281323,0.00024399,2]
[313347140,1707196238296,-500.0,0.00024498,2]
[313347141,1707196238305,-500.0,0.00024498,2]
[313347142,1707196238314,-500.0,0.00024498,2]
[313347143,1707196238324,-308.82,0.00024498,2]
[313347144,1707196238333,-26530.83320325,0.00024499,2]
[313347174,1707196241309,-298.99230445,0.00024499,2]
[313347175,1707196241322,-5269.65452006,0.00024499,2]
[313347187,1707196243037,-1894.49568397,0.00024499,2]
[313347188,1707196243091,-1653.4,0.00024499,2]
[313347189,1707196243104,-4049.40041452,0.00024499,2]
[313347190,1707196243149,-764.76670726,0.00024499,2]
[313347191,1707196243160,-2017.45422036,0.00024499,2]
[313347194,1707196246119,-1400.39186515,0.00024489,3]
[313347195,1707196246134,-476.31344637,0.00024489,3]
[313347196,1707196331370,2000.0,0.000278,30]
[313347297,1707197438361,-155.02170304,0.00021911,2]
[313347298,1707197438371,-155.02170304,0.00021912,2]
[313347299,1707197438380,-260.97438823,0.00021913,2]
[313347300,1707197438389,-166.666666,0.00021918,2]
[313347301,1707197438398,-240.97476906,0.00022047,2]
[313347302,1707197438407,-423.51566884,0.00022399,2]
[313347303,1707197438417,-433.099,0.00022408,2]
[313347304,1707197438425,-247.487044,0.00022555,2]
[313347305,1707197438434,-63.89880122,0.00023578,2]
[313347336,1707197443364,-183.28318696,0.00023,2]
[313347337,1707197443373,-4566.71681324,0.00023578,2]
[313347347,1707197446432,-3197.54007188,0.00023578,2]
[313347348,1707197446442,-4464.17530292,0.00023578,2]
[313347349,1707197446451,-155.27839792,0.00024497,2]
[313347350,1707197446461,-909.34430522,0.00024497,2]
[313347351,1707197446471,-495.68762616,0.00024497,2]
[313347352,1707197446481,-150.64019065,0.00024497,2]
[313347353,1707197446491,-836.31,0.00024589,3]
[313347354,1707197446501,-1408.22713084,0.00024597,2]
[313347379,1707198632413,-563.010236,0.00021853,2]
[313347381,1707198632425,-155.02170304,0.00021853,2]
[313347382,1707198632434,-273.32836536,0.00021854,2]
[313347384,1707198632444,-295.78108884,0.00022,4]
[313347385,1707198632454,-12077.551048,0.00022215,2]
[313347386,1707198632463,-202.152909,0.00022243,2]
[313347387,1707198632473,-21181.3413032,0.00022339,2]
[313347389,1707198632482,-482.38976018,0.00022489,2]
[313347391,1707198632492,-183.28318696,0.00023577,2]
[313347393,1707198632501,-1207.33059767,0.00023578,2]
[313347395,1707198632512,-200.0,0.00024234,7]
[313347396,1707198632522,-150.33599521,0.00024262,2]
[313347397,1707198632533,-19124.88822616,0.00024351,2]
[313347398,1707198632543,-620.01478494,0.00024362,2]
[313347399,1707198632554,-171.53274206,0.00024497,2]
[313347400,1707198632563,-171.53274205,0.00024498,2]
[313347402,1707198632572,-171.53274205,0.00024499,2]
[313347404,1707198632581,-1933.78,0.00024587,3]
[313347405,1707198632591,-2320.54,0.00024588,3]
[313347407,1707198632601,-700.19264639,0.00024597,2]
[313347408,1707198632611,-326.22152252,0.00024597,2]
[313347409,1707198632620,-8724.08782663,0.00024597,2]
[313347410,1707198632629,-241.47132262,0.00024597,2]
[313347411,1707198632639,-184.55221461,0.00024597,2]
[313347412,1707198632650,-630.06471247,0.00024597,2]
[313347413,1707198632659,-155.54001733,0.00024597,2]
[313347414,1707198632669,-1287.75191018,0.00024597,2]
[313347415,1707198632679,-300.0,0.00024597,2]
[313347416,1707198632689,-692.26861691,0.00024598,2]
[313347417,1707198632711,-200.98,0.00024598,2]
[313347418,1707198632721,-15869.98835207,0.00024598,2]
[313347419,1707198632731,-17592.48978193,0.00024599,2]